[Event "Titled Tuesday Blitz March 21 Late 2023"]
[White "Romero Ruscalleda, Josep"]
[Black "Zhurbinsky, David"]
[WhiteFideId "2231859"]
[BlackFideId "2072904"]
[WhiteElo "2183"]
[BlackElo "2593"]
[Result "0-1"]
[Round "08"]
[TimeControl "180+2"]
[Date "2023.03.21"]
[WhiteClock "0:00:39"]
[BlackClock "0:00:57"]

1. e4 {[%clk 0:03:00]}  e5 {[%clk 0:03:00]} 2. Nf3 {[%clk 0:03:00]}  Nc6 {[%clk 0:03:00]} 3. Bc4 {[%clk 0:03:00]}  Bc5 {[%clk 0:03:00]} 4. O-O {[%clk 0:02:59]}  d6 {[%clk 0:02:59]} 5. c3 {[%clk 0:02:58]}  Bb6 {[%clk 0:02:59]} 6. a4 {[%clk 0:02:55]}  Nf6 {[%clk 0:02:58]} 7. Re1 {[%clk 0:02:53]}  O-O {[%clk 0:02:57]} 8. h3 {[%clk 0:02:53]}  a6 {[%clk 0:02:57]} 9. d4 {[%clk 0:02:52]}  h6 {[%clk 0:02:54]} 10. Qd3 {[%clk 0:02:33]}  Qe7 {[%clk 0:02:50]} 11. Be3 {[%clk 0:02:25]}  exd4 {[%clk 0:02:46]} 12. Bxd4 {[%clk 0:02:25]}  Nxd4 {[%clk 0:02:16]} 13. Nxd4 {[%clk 0:02:11]}  d5 {[%clk 0:02:12]} 14. Bb3 {[%clk 0:02:03]}  dxe4 {[%clk 0:02:10]} 15. Qg3 {[%clk 0:01:54]}  Rd8 {[%clk 0:02:03]} 16. Nf3 {[%clk 0:01:29]}  Be6 {[%clk 0:01:45]} 17. Bxe6 {[%clk 0:01:22]}  exf3 {[%clk 0:01:34]} 18. a5 {[%clk 0:01:10]}  Ba7 {[%clk 0:01:30]} 19. Qxf3 {[%clk 0:01:05]}  fxe6 {[%clk 0:01:29]} 20. Qxb7 {[%clk 0:01:05]}  Qc5 {[%clk 0:01:22]} 21. Re2 {[%clk 0:00:51]}  Rab8 {[%clk 0:01:10]} 22. Qf3 {[%clk 0:00:49]}  Rd1+ {[%clk 0:01:02]} 23. Kh2 {[%clk 0:00:48]}  Qd6+ {[%clk 0:01:02]} 24. g3 {[%clk 0:00:48]}  Rf8 {[%clk 0:00:59]} 25. Na3 {[%clk 0:00:40]}  Rxa1 {[%clk 0:00:58]} 26. Nc4 {[%clk 0:00:39]}  Qd1 {[%clk 0:00:57]} 0-1


[Site "https://www.chess.com"]

[Event "Titled Tuesday Blitz March 21 Late 2023"]
[White "Stachanczyk, Jacek"]
[Black "Pinheiro, Iung Alicio de O."]
[WhiteFideId "1116657"]
[BlackFideId "2104350"]
[WhiteElo "2084"]
[BlackElo "2283"]
[Result "1/2-1/2"]
[Round "08"]
[TimeControl "180+2"]
[Date "2023.03.21"]
[WhiteClock "0:00:19"]
[BlackClock "0:00:10"]

1. e4 {[%clk 0:02:53]}  c5 {[%clk 0:02:58]} 2. Nf3 {[%clk 0:02:53]}  Nc6 {[%clk 0:02:54]} 3. d4 {[%clk 0:02:52]}  cxd4 {[%clk 0:02:54]} 4. Nxd4 {[%clk 0:02:53]}  e5 {[%clk 0:02:54]} 5. Nb5 {[%clk 0:02:52]}  d6 {[%clk 0:02:54]} 6. N1c3 {[%clk 0:02:47]}  a6 {[%clk 0:02:53]} 7. Na3 {[%clk 0:02:47]}  b5 {[%clk 0:02:54]} 8. Nd5 {[%clk 0:02:48]}  Nge7 {[%clk 0:02:53]} 9. c4 {[%clk 0:02:47]}  Nxd5 {[%clk 0:02:53]} 10. exd5 {[%clk 0:02:45]}  Nd4 {[%clk 0:02:53]} 11. cxb5 {[%clk 0:02:45]}  Bd7 {[%clk 0:02:51]} 12. bxa6 {[%clk 0:02:40]}  Qa5+ {[%clk 0:02:50]} 13. Bd2 {[%clk 0:02:29]}  Qxd5 {[%clk 0:02:50]} 14. Be3 {[%clk 0:02:07]}  Be7 {[%clk 0:02:21]} 15. Bxd4 {[%clk 0:01:57]}  exd4 {[%clk 0:02:18]} 16. Be2 {[%clk 0:01:57]}  Bc6 {[%clk 0:01:37]} 17. f3 {[%clk 0:01:54]}  Bh4+ {[%clk 0:01:31]} 18. g3 {[%clk 0:01:53]}  Bg5 {[%clk 0:01:31]} 19. O-O {[%clk 0:01:42]}  O-O {[%clk 0:01:26]} 20. Qd3 {[%clk 0:01:32]}  Rac8 {[%clk 0:00:57]} 21. Nc4 {[%clk 0:01:21]}  Bb5 {[%clk 0:00:57]} 22. b3 {[%clk 0:01:20]}  Be3+ {[%clk 0:00:55]} 23. Kg2 {[%clk 0:01:20]}  Bxa6 {[%clk 0:00:49]} 24. Nxe3 {[%clk 0:01:16]}  Bxd3 {[%clk 0:00:48]} 25. Nxd5 {[%clk 0:01:16]}  Bxe2 {[%clk 0:00:49]} 26. Ne7+ {[%clk 0:01:15]}  Kh8 {[%clk 0:00:49]} 27. Nxc8 {[%clk 0:01:15]}  Rxc8 {[%clk 0:00:48]} 28. Rfc1 {[%clk 0:01:12]}  Ra8 {[%clk 0:00:48]} 29. Kf2 {[%clk 0:01:09]}  d3 {[%clk 0:00:44]} 30. Rc6 {[%clk 0:01:05]}  d5 {[%clk 0:00:39]} 31. Rd6 {[%clk 0:01:04]}  h6 {[%clk 0:00:32]} 32. Rxd5 {[%clk 0:01:04]}  Rc8 {[%clk 0:00:33]} 33. Re1 {[%clk 0:00:57]}  Rc2 {[%clk 0:00:32]} 34. Ke3 {[%clk 0:00:57]}  Rxa2 {[%clk 0:00:32]} 35. b4 {[%clk 0:00:55]}  Rb2 {[%clk 0:00:32]} 36. b5 {[%clk 0:00:55]}  g5 {[%clk 0:00:32]} 37. h3 {[%clk 0:00:52]}  Kg7 {[%clk 0:00:33]} 38. Rh1 {[%clk 0:00:31]}  Kf6 {[%clk 0:00:22]} 39. h4 {[%clk 0:00:31]}  Ke6 {[%clk 0:00:21]} 40. Rd4 {[%clk 0:00:28]}  Rxb5 {[%clk 0:00:20]} 41. hxg5 {[%clk 0:00:28]}  hxg5 {[%clk 0:00:21]} 42. Rxd3 {[%clk 0:00:24]}  Bxd3 {[%clk 0:00:18]} 43. Kxd3 {[%clk 0:00:25]}  Rb3+ {[%clk 0:00:19]} 44. Ke2 {[%clk 0:00:25]}  Ke5 {[%clk 0:00:18]} 45. Rh7 {[%clk 0:00:22]}  f6 {[%clk 0:00:18]} 46. Re7+ {[%clk 0:00:22]}  Kf5 {[%clk 0:00:18]} 47. g4+ {[%clk 0:00:22]}  Kf4 {[%clk 0:00:17]} 48. Re6 {[%clk 0:00:22]}  Rb2+ {[%clk 0:00:16]} 49. Kf1 {[%clk 0:00:20]}  Kxf3 {[%clk 0:00:16]} 50. Rxf6+ {[%clk 0:00:21]}  Kxg4 {[%clk 0:00:17]} 51. Kg1 {[%clk 0:00:21]}  Kg3 {[%clk 0:00:16]} 52. Rf1 {[%clk 0:00:21]}  g4 {[%clk 0:00:15]} 53. Rc1 {[%clk 0:00:20]}  Rg2+ {[%clk 0:00:15]} 54. Kh1 {[%clk 0:00:20]}  Rh2+ {[%clk 0:00:16]} 55. Kg1 {[%clk 0:00:20]}  Ra2 {[%clk 0:00:17]} 56. Kh1 {[%clk 0:00:20]}  Kh3 {[%clk 0:00:17]} 57. Kg1 {[%clk 0:00:21]}  Rb2 {[%clk 0:00:16]} 58. Rd1 {[%clk 0:00:21]}  Rb3 {[%clk 0:00:14]} 59. Rc1 {[%clk 0:00:21]}  Rg3+ {[%clk 0:00:15]} 60. Kh1 {[%clk 0:00:21]}  Ra3 {[%clk 0:00:16]} 61. Kg1 {[%clk 0:00:21]}  Kg3 {[%clk 0:00:16]} 62. Rb1 {[%clk 0:00:21]}  Kf3 {[%clk 0:00:17]} 63. Rc1 {[%clk 0:00:22]}  Ra8 {[%clk 0:00:17]} 64. Rb1 {[%clk 0:00:22]}  Ra2 {[%clk 0:00:15]} 65. Rc1 {[%clk 0:00:22]}  Rg2+ {[%clk 0:00:15]} 66. Kh1 {[%clk 0:00:22]}  Rf2 {[%clk 0:00:16]} 67. Kg1 {[%clk 0:00:22]}  Kg3 {[%clk 0:00:16]} 68. Rb1 {[%clk 0:00:21]}  Rf3 {[%clk 0:00:17]} 69. Rc1 {[%clk 0:00:22]}  Kh3 {[%clk 0:00:17]} 70. Rb1 {[%clk 0:00:22]}  Kh4 {[%clk 0:00:15]} 71. Rc1 {[%clk 0:00:21]}  Kg5 {[%clk 0:00:15]} 72. Rb1 {[%clk 0:00:22]}  Kf4 {[%clk 0:00:16]} 73. Rc1 {[%clk 0:00:22]}  Re3 {[%clk 0:00:16]} 74. Rb1 {[%clk 0:00:22]}  Kf3 {[%clk 0:00:17]} 75. Rc1 {[%clk 0:00:23]}  Ke2 {[%clk 0:00:17]} 76. Rb1 {[%clk 0:00:22]}  Rg3+ {[%clk 0:00:15]} 77. Kh2 {[%clk 0:00:20]}  Rh3+ {[%clk 0:00:16]} 78. Kg1 {[%clk 0:00:19]}  Rg3+ {[%clk 0:00:13]} 79. Kh2 {[%clk 0:00:18]}  Rc3 {[%clk 0:00:14]} 80. Kg1 {[%clk 0:00:18]}  Rh3 {[%clk 0:00:08]} 81. Rb2+ {[%clk 0:00:18]}  Kd1 {[%clk 0:00:07]} 82. Rb1+ {[%clk 0:00:17]}  Ke2 {[%clk 0:00:07]} 83. Rb2+ {[%clk 0:00:18]}  Kd3 {[%clk 0:00:08]} 84. Rb3+ {[%clk 0:00:18]}  Ke4 {[%clk 0:00:09]} 85. Rxh3 {[%clk 0:00:18]}  gxh3 {[%clk 0:00:09]} 86. Kh2 {[%clk 0:00:18]}  Kf4 {[%clk 0:00:10]} 87. Kxh3 {[%clk 0:00:19]} 1/2-1/2


[Site "https://www.chess.com"]

[Event "Titled Tuesday Blitz March 21 Late 2023"]
[White "Toniutti, Ezio"]
[Black "Storn, Justin"]
[WhiteFideId "113034"]
[BlackFideId "30922720"]
[WhiteElo "2215"]
[BlackElo "2303"]
[Result "1-0"]
[Round "08"]
[TimeControl "180+2"]
[Date "2023.03.21"]
[WhiteClock "0:01:37"]
[BlackClock "0:00:19"]

1. d4 {[%clk 0:02:56]}  Nf6 {[%clk 0:02:07]} 2. c4 {[%clk 0:02:52]}  g6 {[%clk 0:02:05]} 3. Nc3 {[%clk 0:02:49]}  Bg7 {[%clk 0:02:06]} 4. e4 {[%clk 0:02:44]}  d6 {[%clk 0:02:07]} 5. f4 {[%clk 0:02:43]}  O-O {[%clk 0:02:06]} 6. Nf3 {[%clk 0:02:44]}  c5 {[%clk 0:02:05]} 7. d5 {[%clk 0:02:44]}  e6 {[%clk 0:02:06]} 8. Be2 {[%clk 0:02:45]}  exd5 {[%clk 0:02:07]} 9. cxd5 {[%clk 0:02:46]}  Nbd7 {[%clk 0:02:01]} 10. O-O {[%clk 0:02:45]}  Ne8 {[%clk 0:02:01]} 11. Kh1 {[%clk 0:02:39]}  a6 {[%clk 0:02:00]} 12. a4 {[%clk 0:02:38]}  Rb8 {[%clk 0:02:00]} 13. f5 {[%clk 0:02:38]}  Nc7 {[%clk 0:01:56]} 14. Bg5 {[%clk 0:02:37]}  Bf6 {[%clk 0:01:49]} 15. Qd2 {[%clk 0:02:37]}  b5 {[%clk 0:01:46]} 16. Bh6 {[%clk 0:02:29]}  Re8 {[%clk 0:01:45]} 17. fxg6 {[%clk 0:02:19]}  fxg6 {[%clk 0:01:41]} 18. Ng5 {[%clk 0:02:16]}  b4 {[%clk 0:01:37]} 19. Nd1 {[%clk 0:02:16]}  Ne5 {[%clk 0:01:27]} 20. Nf2 {[%clk 0:01:50]}  a5 {[%clk 0:00:55]} 21. Rad1 {[%clk 0:01:49]}  Ba6 {[%clk 0:00:55]} 22. Bxa6 {[%clk 0:01:47]}  Nxa6 {[%clk 0:00:56]} 23. Ne6 {[%clk 0:01:42]}  Qe7 {[%clk 0:00:51]} 24. b3 {[%clk 0:01:38]}  c4 {[%clk 0:00:47]} 25. bxc4 {[%clk 0:01:37]}  Nxc4 {[%clk 0:00:46]} 26. Qe2 {[%clk 0:01:37]}  Rec8 {[%clk 0:00:34]} 27. Ng4 {[%clk 0:01:37]}  Bh8 {[%clk 0:00:29]} 28. Bg5 {[%clk 0:01:37]}  Qa7 {[%clk 0:00:19]} 29. Nh6# {[%clk 0:01:37]} 1-0


[Site "https://www.chess.com"]

[Event "Titled Tuesday Blitz March 21 Late 2023"]
[White "Olsson, William"]
[Black "Ruiz Aguilar, Pablo Alexander"]
[WhiteFideId "1741721"]
[BlackFideId "4401352"]
[WhiteElo "2197"]
[BlackElo "2138"]
[Result "1-0"]
[Round "08"]
[TimeControl "180+2"]
[Date "2023.03.21"]
[WhiteClock "0:00:26"]
[BlackClock "0:00:02"]

1. c4 {[%clk 0:02:58]}  c6 {[%clk 0:02:58]} 2. Nf3 {[%clk 0:02:56]}  d5 {[%clk 0:02:58]} 3. g3 {[%clk 0:02:55]}  Nf6 {[%clk 0:02:56]} 4. Bg2 {[%clk 0:02:55]}  e6 {[%clk 0:02:56]} 5. O-O {[%clk 0:02:56]}  Nbd7 {[%clk 0:02:56]} 6. b3 {[%clk 0:02:56]}  Bd6 {[%clk 0:02:53]} 7. Bb2 {[%clk 0:02:55]}  O-O {[%clk 0:02:53]} 8. d3 {[%clk 0:02:52]}  Qe7 {[%clk 0:02:53]} 9. Nbd2 {[%clk 0:02:53]}  Ba3 {[%clk 0:02:50]} 10. Bxa3 {[%clk 0:02:50]}  Qxa3 {[%clk 0:02:49]} 11. e4 {[%clk 0:02:50]}  Rd8 {[%clk 0:02:43]} 12. e5 {[%clk 0:02:49]}  Ne8 {[%clk 0:02:42]} 13. d4 {[%clk 0:02:43]}  a5 {[%clk 0:02:35]} 14. Qc2 {[%clk 0:02:42]}  a4 {[%clk 0:02:33]} 15. Ng5 {[%clk 0:02:35]}  g6 {[%clk 0:02:28]} 16. cxd5 {[%clk 0:02:07]}  cxd5 {[%clk 0:02:22]} 17. h4 {[%clk 0:01:59]}  axb3 {[%clk 0:02:18]} 18. Nxb3 {[%clk 0:02:00]}  b6 {[%clk 0:01:59]} 19. h5 {[%clk 0:01:58]}  Ba6 {[%clk 0:02:00]} 20. Bh3 {[%clk 0:01:45]}  Bxf1 {[%clk 0:01:47]} 21. hxg6 {[%clk 0:01:36]}  hxg6 {[%clk 0:00:50]} 22. Kxf1 {[%clk 0:01:04]}  Qe7 {[%clk 0:00:42]} 23. f4 {[%clk 0:00:53]}  Ng7 {[%clk 0:00:42]} 24. Kg2 {[%clk 0:00:50]}  Rdc8 {[%clk 0:00:39]} 25. Qe2 {[%clk 0:00:48]}  Nf5 {[%clk 0:00:33]} 26. Bxf5 {[%clk 0:00:47]}  exf5 {[%clk 0:00:29]} 27. Rh1 {[%clk 0:00:40]}  Nf8 {[%clk 0:00:14]} 28. Kg1 {[%clk 0:00:29]}  Ne6 {[%clk 0:00:02]} 29. Qh2 {[%clk 0:00:26]} 1-0


[Site "https://www.chess.com"]

[Event "Titled Tuesday Blitz March 21 Late 2023"]
[White "Albuquerque Junior,Wellington S."]
[Black "reevecanada"]
[WhiteFideId "2151480"]
[WhiteElo "2109"]
[BlackElo "2440"]
[Result "0-1"]
[Round "08"]
[TimeControl "180+2"]
[Date "2023.03.21"]
[WhiteClock "0:00:03"]
[BlackClock "0:00:49"]

1. c4 {[%clk 0:03:00]}  c5 {[%clk 0:02:49]} 2. g3 {[%clk 0:02:59]}  d6 {[%clk 0:02:41]} 3. Bg2 {[%clk 0:02:59]}  Nf6 {[%clk 0:02:39]} 4. Nc3 {[%clk 0:02:59]}  e6 {[%clk 0:02:40]} 5. e4 {[%clk 0:02:58]}  Be7 {[%clk 0:02:40]} 6. Nge2 {[%clk 0:02:58]}  O-O {[%clk 0:02:41]} 7. O-O {[%clk 0:02:58]}  Nc6 {[%clk 0:02:39]} 8. b3 {[%clk 0:02:57]}  Qc7 {[%clk 0:02:39]} 9. h3 {[%clk 0:02:46]}  a6 {[%clk 0:02:38]} 10. Kh2 {[%clk 0:02:39]}  b6 {[%clk 0:02:23]} 11. Bb2 {[%clk 0:02:36]}  Bb7 {[%clk 0:02:22]} 12. Rc1 {[%clk 0:02:35]}  Rfd8 {[%clk 0:02:21]} 13. a4 {[%clk 0:02:22]}  Nb4 {[%clk 0:02:19]} 14. d4 {[%clk 0:02:14]}  Bc6 {[%clk 0:02:14]} 15. d5 {[%clk 0:02:11]}  Bb7 {[%clk 0:02:12]} 16. f4 {[%clk 0:02:06]}  Bf8 {[%clk 0:02:08]} 17. Qd2 {[%clk 0:01:54]}  g6 {[%clk 0:02:05]} 18. e5 {[%clk 0:01:49]}  dxe5 {[%clk 0:01:58]} 19. fxe5 {[%clk 0:01:50]}  Qxe5 {[%clk 0:01:58]} 20. Rxf6 {[%clk 0:01:25]}  Qxf6 {[%clk 0:01:54]} 21. Ne4 {[%clk 0:01:25]}  Qe7 {[%clk 0:01:50]} 22. Qc3 {[%clk 0:00:31]}  e5 {[%clk 0:01:46]} 23. Qxe5 {[%clk 0:00:14]}  Qxe5 {[%clk 0:01:44]} 24. Bxe5 {[%clk 0:00:14]}  Bg7 {[%clk 0:01:45]} 25. Nf6+ {[%clk 0:00:12]}  Bxf6 {[%clk 0:01:43]} 26. Bxf6 {[%clk 0:00:13]}  Re8 {[%clk 0:01:43]} 27. Nf4 {[%clk 0:00:13]}  Re3 {[%clk 0:01:41]} 28. d6 {[%clk 0:00:12]}  Bxg2 {[%clk 0:01:40]} 29. Kxg2 {[%clk 0:00:13]}  Rxb3 {[%clk 0:01:38]} 30. d7 {[%clk 0:00:13]}  Nc6 {[%clk 0:01:37]} 31. Re1 {[%clk 0:00:12]}  Kf8 {[%clk 0:01:37]} 32. Nd5 {[%clk 0:00:11]}  Rd3 {[%clk 0:01:01]} 33. Nxb6 {[%clk 0:00:08]}  Rd2+ {[%clk 0:00:57]} 34. Kf3 {[%clk 0:00:06]}  Rb8 {[%clk 0:00:55]} 35. a5 {[%clk 0:00:03]}  Rd6 {[%clk 0:00:49]} 0-1


[Site "https://www.chess.com"]

[Event "Titled Tuesday Blitz March 21 Late 2023"]
[White "Skaric, Djuro"]
[Black "Tymrakiewicz, Rafal"]
[WhiteFideId "934569"]
[BlackFideId "1108832"]
[WhiteElo "2282"]
[BlackElo "2151"]
[Result "0-1"]
[Round "08"]
[TimeControl "180+2"]
[Date "2023.03.21"]
[WhiteClock "0:00:48"]
[BlackClock "0:00:14"]

1. g3 {[%clk 0:03:00]}  e5 {[%clk 0:02:57]} 2. Bg2 {[%clk 0:03:00]}  d5 {[%clk 0:02:50]} 3. d3 {[%clk 0:03:01]}  Nf6 {[%clk 0:02:49]} 4. Nf3 {[%clk 0:03:02]}  Nc6 {[%clk 0:02:48]} 5. O-O {[%clk 0:03:02]}  h6 {[%clk 0:02:49]} 6. Nc3 {[%clk 0:03:02]}  Bg4 {[%clk 0:02:44]} 7. h3 {[%clk 0:03:02]}  Bh5 {[%clk 0:02:44]} 8. e4 {[%clk 0:02:58]}  dxe4 {[%clk 0:02:32]} 9. dxe4 {[%clk 0:02:58]}  Qxd1 {[%clk 0:02:33]} 10. Rxd1 {[%clk 0:02:58]}  Bxf3 {[%clk 0:02:33]} 11. Bxf3 {[%clk 0:02:57]}  Nd4 {[%clk 0:02:34]} 12. Bg2 {[%clk 0:02:56]}  Nxc2 {[%clk 0:02:34]} 13. Rb1 {[%clk 0:02:56]}  c6 {[%clk 0:02:31]} 14. a3 {[%clk 0:02:54]}  a5 {[%clk 0:02:23]} 15. Na4 {[%clk 0:02:44]}  Rd8 {[%clk 0:02:20]} 16. Be3 {[%clk 0:02:38]}  Nxe3 {[%clk 0:02:19]} 17. fxe3 {[%clk 0:02:38]}  b5 {[%clk 0:02:13]} 18. Nc3 {[%clk 0:02:38]}  Bc5 {[%clk 0:02:12]} 19. Kf2 {[%clk 0:02:37]}  Ke7 {[%clk 0:02:10]} 20. Ke2 {[%clk 0:02:37]}  Rxd1 {[%clk 0:02:09]} 21. Rxd1 {[%clk 0:02:36]}  Rd8 {[%clk 0:02:09]} 22. Rc1 {[%clk 0:02:37]}  Nd7 {[%clk 0:02:07]} 23. h4 {[%clk 0:02:30]}  Bd6 {[%clk 0:01:52]} 24. Rc2 {[%clk 0:02:10]}  a4 {[%clk 0:01:50]} 25. Bf1 {[%clk 0:02:03]}  Nc5 {[%clk 0:01:48]} 26. Kf3 {[%clk 0:02:02]}  Nb3 {[%clk 0:01:31]} 27. Bh3 {[%clk 0:01:55]}  Bc5 {[%clk 0:01:27]} 28. Ke2 {[%clk 0:01:53]}  Rd6 {[%clk 0:01:22]} 29. Bf5 {[%clk 0:01:43]}  g6 {[%clk 0:01:05]} 30. Bh3 {[%clk 0:01:42]}  h5 {[%clk 0:01:04]} 31. Bg2 {[%clk 0:01:42]}  Bb6 {[%clk 0:00:52]} 32. Bf1 {[%clk 0:01:30]}  Kd7 {[%clk 0:00:52]} 33. Bh3+ {[%clk 0:01:25]}  Ke7 {[%clk 0:00:52]} 34. Bg2 {[%clk 0:01:25]}  Ba5 {[%clk 0:00:52]} 35. Nb1 {[%clk 0:01:19]}  c5 {[%clk 0:00:44]} 36. Bf1 {[%clk 0:01:17]}  c4 {[%clk 0:00:44]} 37. Kf3 {[%clk 0:01:10]}  Nd2+ {[%clk 0:00:35]} 38. Nxd2 {[%clk 0:01:09]}  Rxd2 {[%clk 0:00:35]} 39. Rc1 {[%clk 0:00:58]}  Rxb2 {[%clk 0:00:35]} 40. Rd1 {[%clk 0:00:56]}  Bd2 {[%clk 0:00:33]} 41. g4 {[%clk 0:00:51]}  hxg4+ {[%clk 0:00:31]} 42. Kxg4 {[%clk 0:00:51]}  c3 {[%clk 0:00:21]} 43. Bd3 {[%clk 0:00:50]}  c2 {[%clk 0:00:17]} 44. Bxc2 {[%clk 0:00:50]}  Rxc2 {[%clk 0:00:17]} 45. Rb1 {[%clk 0:00:50]}  b4 {[%clk 0:00:17]} 46. axb4 {[%clk 0:00:49]}  a3 {[%clk 0:00:17]} 47. Rb3 {[%clk 0:00:49]}  a2 {[%clk 0:00:13]} 48. Ra3 {[%clk 0:00:49]}  Bc3 {[%clk 0:00:13]} 49. Ra7+ {[%clk 0:00:48]}  Kf8 {[%clk 0:00:14]} 50. b5 {[%clk 0:00:48]}  a1=Q {[%clk 0:00:13]} 51. Rxa1 {[%clk 0:00:48]}  Bxa1 {[%clk 0:00:14]} 52. b6 {[%clk 0:00:49]}  Rb2 {[%clk 0:00:14]} 53. h5 {[%clk 0:00:48]}  gxh5+ {[%clk 0:00:14]} 54. Kf5 {[%clk 0:00:48]}  Rxb6 {[%clk 0:00:14]} 0-1


[Site "https://www.chess.com"]

[Event "Titled Tuesday Blitz March 21 Late 2023"]
[White "Szyszylo, Rafal"]
[Black "Roman, Rodrigo"]
[WhiteFideId "1109626"]
[BlackFideId "3701220"]
[WhiteElo "1951"]
[BlackElo "1995"]
[Result "0-1"]
[Round "08"]
[TimeControl "180+2"]
[Date "2023.03.21"]
[WhiteClock "0:00:05"]
[BlackClock "0:00:54"]

1. e4 {[%clk 0:03:00]}  e5 {[%clk 0:02:59]} 2. d4 {[%clk 0:02:59]}  exd4 {[%clk 0:02:58]} 3. c3 {[%clk 0:03:00]}  d5 {[%clk 0:02:57]} 4. exd5 {[%clk 0:02:58]}  Qxd5 {[%clk 0:02:57]} 5. Nf3 {[%clk 0:02:56]}  Nc6 {[%clk 0:02:51]} 6. cxd4 {[%clk 0:02:50]}  Bg4 {[%clk 0:02:45]} 7. Be2 {[%clk 0:02:42]}  O-O-O {[%clk 0:02:31]} 8. Nc3 {[%clk 0:02:38]}  Bb4 {[%clk 0:02:28]} 9. O-O {[%clk 0:02:37]}  Qa5 {[%clk 0:02:25]} 10. a3 {[%clk 0:01:33]}  Nf6 {[%clk 0:02:14]} 11. Be3 {[%clk 0:01:26]}  Bxc3 {[%clk 0:02:10]} 12. bxc3 {[%clk 0:01:25]}  Qxc3 {[%clk 0:02:11]} 13. Rc1 {[%clk 0:01:21]}  Qxa3 {[%clk 0:02:08]} 14. h3 {[%clk 0:01:12]}  Be6 {[%clk 0:01:58]} 15. Qc2 {[%clk 0:01:09]}  Bd5 {[%clk 0:01:56]} 16. Ne5 {[%clk 0:01:08]}  Qd6 {[%clk 0:01:50]} 17. Nc4 {[%clk 0:00:50]}  Qe7 {[%clk 0:01:44]} 18. Rfd1 {[%clk 0:00:43]}  Qe4 {[%clk 0:01:36]} 19. Bf3 {[%clk 0:00:41]}  Qxc2 {[%clk 0:01:35]} 20. Rxc2 {[%clk 0:00:39]}  Bxf3 {[%clk 0:01:35]} 21. gxf3 {[%clk 0:00:39]}  Rd5 {[%clk 0:01:33]} 22. Rdc1 {[%clk 0:00:31]}  Nxd4 {[%clk 0:01:11]} 23. Bxd4 {[%clk 0:00:29]}  Rxd4 {[%clk 0:01:10]} 24. Ne5 {[%clk 0:00:29]}  c6 {[%clk 0:01:10]} 25. Nxf7 {[%clk 0:00:26]}  Re8 {[%clk 0:01:09]} 26. Ng5 {[%clk 0:00:22]}  h6 {[%clk 0:01:06]} 27. Nf7 {[%clk 0:00:15]}  Rd7 {[%clk 0:00:58]} 28. Rxc6+ {[%clk 0:00:13]}  bxc6 {[%clk 0:00:57]} 29. Rxc6+ {[%clk 0:00:14]}  Kb7 {[%clk 0:00:54]} 30. Nd6+ {[%clk 0:00:05]}  Kxc6 {[%clk 0:00:54]} 31. Nxe8 {[%clk 0:00:05]}  Nxe8 {[%clk 0:00:54]} 0-1


[Site "https://www.chess.com"]

[Event "Titled Tuesday Blitz March 21 Late 2023"]
[White "Davidson, Kevin"]
[Black "Sabar, Ethmane Daouda"]
[WhiteFideId "2056810"]
[BlackFideId "19600097"]
[WhiteElo "2151"]
[BlackElo "1950"]
[Result "1-0"]
[Round "08"]
[TimeControl "180+2"]
[Date "2023.03.21"]
[WhiteClock "0:01:56"]
[BlackClock "0:01:48"]

1. e4 {[%clk 0:03:00]}  c5 {[%clk 0:02:57]} 2. Nf3 {[%clk 0:03:00]}  Nc6 {[%clk 0:02:56]} 3. d4 {[%clk 0:03:01]}  cxd4 {[%clk 0:02:56]} 4. Nxd4 {[%clk 0:03:01]}  Nf6 {[%clk 0:02:56]} 5. Nc3 {[%clk 0:03:01]}  e5 {[%clk 0:02:56]} 6. Ndb5 {[%clk 0:03:00]}  d6 {[%clk 0:02:54]} 7. Nd5 {[%clk 0:03:01]}  Nxd5 {[%clk 0:02:54]} 8. exd5 {[%clk 0:03:01]}  Nb8 {[%clk 0:02:53]} 9. c4 {[%clk 0:03:01]}  Nd7 {[%clk 0:02:52]} 10. Bd3 {[%clk 0:03:01]}  a6 {[%clk 0:02:47]} 11. Nc3 {[%clk 0:03:01]}  Be7 {[%clk 0:02:46]} 12. O-O {[%clk 0:03:00]}  O-O {[%clk 0:02:47]} 13. Be3 {[%clk 0:02:58]}  f5 {[%clk 0:02:47]} 14. f3 {[%clk 0:02:58]}  Bf6 {[%clk 0:02:44]} 15. Bxf5 {[%clk 0:02:57]}  Nc5 {[%clk 0:02:30]} 16. Bxc8 {[%clk 0:02:36]}  Rxc8 {[%clk 0:02:31]} 17. Rc1 {[%clk 0:02:22]}  Bg5 {[%clk 0:02:25]} 18. Qd2 {[%clk 0:02:17]}  Bxe3+ {[%clk 0:02:21]} 19. Qxe3 {[%clk 0:02:17]}  Qh4 {[%clk 0:02:21]} 20. b4 {[%clk 0:02:07]}  Nd7 {[%clk 0:02:07]} 21. Ne4 {[%clk 0:02:07]}  Qe7 {[%clk 0:01:55]} 22. c5 {[%clk 0:02:04]}  dxc5 {[%clk 0:01:56]} 23. bxc5 {[%clk 0:02:04]}  Nf6 {[%clk 0:01:48]} 24. d6 {[%clk 0:01:56]} 1-0


[Site "https://www.chess.com"]